bitfinex/quotes_BTCUSD_20250115
["timestamp","ask_amount","ask_price","bid_price","bid_amount"]
[1736933408108,0.1,97069.0,97046.0,0.04989613]
[1736933408317,0.206051,97064.0,97046.0,0.04989613]
[1736933408534,0.10422692,97063.0,97047.0,0.206085]
[1736933408735,0.10422692,97063.0,97050.0,0.1222788]
[1736933409103,0.10422692,97063.0,97048.0,0.05116248]
[1736933409506,0.206042,97068.0,97053.0,0.206072]
[1736933409658,0.10422692,97067.0,97053.0,0.206072]
[1736933409861,0.206045,97066.0,97049.0,0.206081]
[1736933410093,0.10422692,97065.0,97049.0,0.206081]
[1736933410296,0.10422692,97065.0,97051.0,0.206077]
[1736933410466,0.10422692,97065.0,97056.0,0.206066]
[1736933410670,0.1,97075.0,97052.0,0.206075]
[1736933410875,0.20422692,97074.0,97059.0,0.206059]
[1736933411220,0.10422692,97074.0,97060.0,0.2049788]
[1736933412166,0.1,97085.0,97061.0,0.27525288]
[1736933412390,0.20422692,97084.0,97069.0,0.1222788]
[1736933412610,0.20422692,97084.0,97061.0,0.27525288]
[1736933412611,0.1,97081.0,97067.0,0.206041]
[1736933412808,0.10422692,97080.0,97067.0,0.206041]
[1736933413212,0.001,97074.0,97067.0,0.206041]
[1736933413415,0.10422692,97080.0,97067.0,0.206041]
[1736933413825,0.10422692,97080.0,97067.0,0.27261828]
[1736933414035,0.10522692,97080.0,97067.0,0.27261828]
[1736933414655,0.10422692,97080.0,97067.0,0.27261828]
[1736933414882,0.01031917,97100.0,97067.0,0.27261828]
[1736933414883,0.1,97093.0,97083.0,0.206008]
[1736933415091,0.20422692,97092.0,97072.0,0.206031]
[1736933415295,0.10422692,97092.0,97070.0,0.1222788]
[1736933415591,0.0205975,97098.0,97062.0,0.00103015]
[1736933415592,0.0205975,97098.0,97082.0,0.0827]
[1736933415796,0.10422692,97097.0,97083.0,0.206009]
[1736933416194,0.10422692,97097.0,97083.0,0.20605981]
[1736933416620,0.10422692,97097.0,97083.0,5.081e-05]
[1736933416854,0.10422692,97097.0,97084.0,0.206007]
[1736933417029,0.002,97093.0,97084.0,0.206007]
[1736933417472,0.1,97101.0,97089.0,0.205996]
[1736933417683,0.10422692,97100.0,97089.0,0.205996]
[1736933417893,0.10422692,97101.0,97089.0,0.205996]
[1736933418273,0.10422692,97101.0,97089.0,0.411992]
[1736933418499,0.10422692,97101.0,97089.0,0.205996]
[1736933418707,0.10422692,97101.0,97088.0,0.0487]
[1736933419060,0.10422692,97101.0,97089.0,0.205996]
[1736933419615,0.1,97089.0,97083.0,5.081e-05]
[1736933419916,0.205967,97103.0,97083.0,5.081e-05]
[1736933419917,0.123,97085.0,97083.0,5.081e-05]
[1736933420070,0.12722692,97084.0,97083.0,5.081e-05]
[1736933420292,0.10422692,97084.0,97083.0,5.081e-05]
[1736933420696,0.1,97085.0,97083.0,5.081e-05]
[1736933420891,0.005,97089.0,97083.0,5.081e-05]
[1736933421104,0.001,97085.0,97083.0,5.081e-05]
[1736933421683,0.20422692,97089.0,97083.0,5.081e-05]
[1736933421879,0.123,97084.0,97083.0,0.00205081]
[1736933422099,0.58323392,97084.0,97083.0,0.00205081]
[1736933423146,0.58323392,97084.0,97083.0,5.081e-05]
[1736933423363,0.58723392,97084.0,97083.0,5.081e-05]
[1736933423583,0.58323392,97084.0,97083.0,0.00205081]
[1736933423759,0.6849294,97084.0,97083.0,0.00205081]
[1736933424057,0.6879294,97084.0,97083.0,5.081e-05]
[1736933424272,0.68972386,97084.0,97083.0,5.081e-05]
[1736933424853,0.88972386,97084.0,97083.0,5.081e-05]
[1736933425058,0.98071544,97084.0,97083.0,5.081e-05]
[1736933425268,0.88071544,97084.0,97083.0,5.081e-05]
[1736933425648,0.89112659,97084.0,97083.0,5.081e-05]
[1736933426139,0.88812659,97084.0,97083.0,5.081e-05]
[1736933426673,0.87553501,97084.0,97083.0,5.081e-05]
[1736933426891,0.88153501,97084.0,97083.0,5.081e-05]
[1736933427094,0.87953501,97084.0,97083.0,5.081e-05]
[1736933427342,0.87353501,97084.0,97083.0,5.081e-05]
[1736933427566,0.88553501,97084.0,97083.0,5.081e-05]
[1736933428565,0.65042838,97084.0,97083.0,5.081e-05]
[1736933428863,0.57402838,97084.0,97083.0,5.081e-05]
[1736933429458,0.59702838,97084.0,97083.0,5.081e-05]
[1736933431339,0.69702838,97084.0,97083.0,8.1e-07]
[1736933432482,1.19702838,97084.0,97083.0,8.1e-07]
[1736933432688,1.3012553,97084.0,97083.0,8.1e-07]
[1736933435757,1.3012553,97084.0,97083.0,0.00085491]
[1736933441360,1.39311764,97084.0,97083.0,0.00085491]
[1736933442202,1.3012553,97084.0,97083.0,0.00085491]
[1736933442380,1.3072553,97084.0,97083.0,0.00085491]
[1736933442798,1.32341516,97084.0,97083.0,0.00085491]
[1736933443177,1.44504882,97084.0,97083.0,0.00085491]
[1736933445861,1.1118219,97084.0,97083.0,0.00085491]
[1736933446063,1.2118219,97084.0,97083.0,0.00085491]
[1736933446275,1.15098048,97084.0,97083.0,0.00085491]
[1736933446511,1.1348219,97084.0,97083.0,0.00085491]
[1736933446686,1.2348219,97084.0,97083.0,0.00085491]
[1736933446831,1.33904882,97084.0,97083.0,0.00085491]
[1736933447228,1.23904882,97084.0,97083.0,0.00085491]
[1736933447432,1.33904882,97084.0,97083.0,0.00085491]
[1736933447673,1.2012553,97084.0,97083.0,0.00085491]
[1736933447829,1.1922553,97084.0,97083.0,0.00085491]
[1736933448033,1.2012553,97084.0,97083.0,0.00085491]
[1736933448434,0.99702838,97084.0,97083.0,0.00085491]
[1736933448633,1.19702838,97084.0,97083.0,0.00085491]
[1736933449099,1.19402838,97084.0,97083.0,0.00085491]
[1736933449295,1.19102838,97084.0,97083.0,0.00185491]
[1736933449696,1.20002838,97084.0,97083.0,0.00185491]
[1736933449898,1.2982553,97084.0,97083.0,0.00085491]
[1736933450314,1.3012553,97084.0,97083.0,0.00085491]
[1736933451263,1.4315553,97084.0,97083.0,0.00085491]
[1736933451768,1.4315553,97084.0,97083.0,9.1e-07]
[1736933451769,2.33550073,97084.0,97083.0,9.1e-07]
[1736933451899,1.60341573,97084.0,97083.0,9.1e-07]
[1736933452303,1.74120925,97084.0,97083.0,9.1e-07]
[1736933452720,1.73820925,97084.0,97083.0,9.1e-07]
[1736933452926,1.72920925,97084.0,97083.0,9.1e-07]
[1736933453131,1.73620925,97084.0,97083.0,9.1e-07]
[1736933453337,1.73620925,97084.0,97039.0,0.0806]
[1736933453338,0.206096,97042.0,97039.0,0.06930909]
[1736933453520,0.206096,97042.0,97039.0,0.06935859]
[1736933453521,0.10422692,97041.0,97039.0,0.06935859]
[1736933455100,0.1,97043.0,97039.0,0.06935859]
[1736933455403,0.30607,97055.0,97040.0,0.206099]
[1736933455603,0.10422692,97054.0,97041.0,0.206098]
[1736933455982,0.10422692,97054.0,97041.0,0.23167275]
[1736933456416,0.10422692,97054.0,97042.0,0.0806]
[1736933456554,0.20422692,97054.0,97043.0,0.206094]
[1736933456746,0.10822692,97054.0,97043.0,0.206094]
[1736933456952,0.10822692,97054.0,97049.0,0.0806]
[1736933457147,0.10422692,97054.0,97049.0,0.0806]
[1736933457358,0.10422692,97054.0,97041.0,0.002]
[1736933457359,0.1,97072.0,97051.0,0.0806]
[1736933457555,0.1,97069.0,97056.0,0.206065]
[1736933457774,0.10422692,97068.0,97056.0,0.206065]
[1736933457984,0.10422692,97068.0,97057.0,0.0806]
[1736933459014,0.206029,97074.0,97058.0,0.206062]
[1736933459227,0.1,97069.0,97058.0,0.412124]
[1736933459416,0.10422692,97073.0,97059.0,0.20606]
[1736933459616,0.001,97068.0,97059.0,0.20606]
[1736933459815,0.001,97068.0,97061.0,0.206055]
[1736933460217,0.1,97069.0,97060.0,0.0468]
[1736933460687,0.101,97069.0,97060.0,0.0468]
[1736933461237,0.001,97069.0,97061.0,0.206055]
[1736933461616,0.001,97069.0,97062.0,0.0752]
[1736933461824,0.10422692,97073.0,97062.0,0.0752]
[1736933462008,0.10422692,97073.0,97063.0,0.206051]
[1736933462611,0.10422692,97073.0,97067.0,0.206041]
[1736933462816,0.1,97082.0,97067.0,0.206041]
[1736933463017,0.001,97073.0,97068.0,0.0752]
[1736933463444,0.002,97073.0,97068.0,0.0752]
[1736933463642,0.20602,97078.0,97068.0,0.0752]
[1736933463841,0.10422692,97077.0,97068.0,0.0752]
[1736933464390,0.001,97073.0,97068.0,0.0752]
[1736933464539,0.003,97073.0,97068.0,0.0752]
[1736933465770,0.002,97073.0,97068.0,0.0752]
[1736933466532,0.10422692,97077.0,97068.0,0.0752]
[1736933466912,0.10522692,97077.0,97068.0,0.0762]
[1736933467317,0.10518692,97077.0,97068.0,0.0772]
[1736933467522,0.10518692,97077.0,97068.0,0.0762]
[1736933467783,0.10418692,97077.0,97068.0,0.0752]
[1736933467967,0.10418692,97077.0,97068.0,0.0762]
[1736933468475,0.206037,97070.0,97068.0,0.0762]
[1736933468680,0.10422692,97069.0,97068.0,0.001]
[1736933468837,0.20422692,97069.0,97068.0,0.001]
[1736933469261,0.20422692,97069.0,97068.0,0.002]
[1736933469845,0.20422692,97069.0,97068.0,0.001]
[1736933470051,0.412082,97068.0,97061.0,0.0772]
[1736933470247,0.10422692,97067.0,97061.0,0.0772]
[1736933470450,0.20422692,97067.0,97061.0,0.0772]
[1736933471690,0.20422692,97067.0,97061.0,0.0782]
[1736933472117,0.206045,97066.0,97061.0,0.0782]
[1736933472317,0.00179446,97069.0,97061.0,0.0782]
[1736933473179,0.00179446,97069.0,97061.0,0.0772]
[1736933473341,0.00179446,97069.0,97061.0,0.0792]
[1736933473738,0.00179446,97069.0,97061.0,0.0772]
[1736933474609,0.00179446,97069.0,97062.0,0.206052]
[1736933474795,0.00179446,97069.0,97063.0,0.02083935]
[1736933474997,0.00179446,97069.0,97062.0,0.206052]
[1736933475290,0.00179446,97069.0,97061.0,0.0772]
[1736933475494,0.00179446,97069.0,97064.0,0.01929339]
[1736933475706,0.53709277,97068.0,97064.0,0.01929339]
[1736933475908,0.51630992,97068.0,97064.0,0.01929339]
[1736933476499,0.51630992,97068.0,97061.0,0.0772]
[1736933477173,0.10422692,97068.0,97061.0,0.0772]
[1736933477380,0.00179446,97069.0,97064.0,0.001]
[1736933477587,0.10602138,97069.0,97061.0,0.0772]
[1736933477849,0.00179446,97069.0,97062.0,0.412106]
[1736933478038,0.00179446,97069.0,97063.0,0.206051]
[1736933478258,0.00179446,97069.0,97061.0,0.0782]
[1736933478455,0.00179446,97069.0,97061.0,0.0772]
[1736933478601,0.00179446,97069.0,97068.0,0.206041]
[1736933478833,0.00179446,97069.0,97068.0,0.283241]
[1736933479628,0.00179446,97069.0,97068.0,0.0772]
[1736933481211,0.00179446,97069.0,97068.0,0.1477352]
[1736933481414,0.00179446,97069.0,97068.0,0.1487352]
[1736933481618,0.00179446,97069.0,97068.0,0.0792]
[1736933482033,0.00179446,97069.0,97068.0,0.1288]
[1736933482688,0.00179446,97069.0,97068.0,0.1278]
[1736933483104,0.00179446,97069.0,97068.0,0.1288]
[1736933483624,0.00179446,97069.0,97068.0,0.002]
[1736933483625,0.02479446,97069.0,97068.0,0.002]
[1736933483767,0.12902138,97069.0,97068.0,0.002]
[1736933483972,0.19313052,97069.0,97068.0,0.002]
[1736933485348,0.20362326,97069.0,97068.0,0.002]
[1736933485569,0.20362326,97069.0,97068.0,0.001]
[1736933485773,0.20362326,97069.0,97061.0,0.0008542]
[1736933485927,0.206053,97062.0,97061.0,0.0008542]
[1736933486128,0.33327992,97062.0,97061.0,0.0008542]
[1736933490601,0.40799556,97062.0,97061.0,0.0008542]
[1736933491529,0.33327992,97062.0,97061.0,0.0008542]
[1736933493591,0.10422692,97062.0,97061.0,0.0008542]
[1736933495205,0.00179446,97069.0,97061.0,0.0008542]
[1736933495406,0.33327992,97062.0,97061.0,0.0008542]
[1736933496947,0.33327992,97062.0,97061.0,0.0028542]
[1736933497572,0.41799556,97062.0,97061.0,0.0028542]
[1736933502188,0.33327992,97062.0,97061.0,0.0028542]
[1736933505706,0.33327992,97062.0,97061.0,0.0018542]
[1736933505906,0.33427992,97062.0,97061.0,0.0018542]
[1736933506109,0.58427992,97062.0,97061.0,0.0008542]
[1736933506496,0.77203992,97062.0,97061.0,0.0008542]
[1736933506701,0.87326684,97062.0,97061.0,0.0008542]
[1736933507059,0.87726684,97062.0,97061.0,0.0008542]
[1736933507683,0.88026684,97062.0,97061.0,0.0008542]
[1736933507993,0.78026684,97062.0,97061.0,0.0008542]
[1736933508191,0.77926684,97062.0,97061.0,0.0008542]
[1736933508405,0.87926684,97062.0,97061.0,0.0008542]
[1736933508613,0.88026684,97062.0,97061.0,0.0008542]
[1736933508817,0.87426684,97062.0,97061.0,0.0008542]
[1736933509018,0.87326684,97062.0,97061.0,0.0008542]
[1736933509222,0.88426684,97062.0,97061.0,0.0008542]
[1736933509459,0.86930684,97062.0,97061.0,0.0008542]
[1736933510268,0.87530684,97062.0,97061.0,0.0008542]
[1736933513089,0.77530684,97062.0,97061.0,0.0008542]
[1736933513297,0.69550684,97062.0,97061.0,0.0008542]
[1736933514174,0.59127992,97062.0,97061.0,0.0008542]
[1736933516168,0.49127992,97062.0,97061.0,0.0008542]
[1736933516367,0.59127992,97062.0,97061.0,0.0008542]
[1736933517685,0.49127992,97062.0,97061.0,0.0008542]
[1736933517887,0.59127992,97062.0,97061.0,0.0008542]
[1736933518149,0.69550684,97062.0,97061.0,0.0008542]
[1736933521267,0.44127992,97062.0,97061.0,0.0008542]
[1736933521836,0.31827992,97062.0,97061.0,0.0008542]
[1736933522054,0.11222692,97062.0,97061.0,0.1279542]
[1736933522458,0.21022692,97062.0,97061.0,0.1279542]
[1736933523053,0.11022692,97062.0,97061.0,0.1279542]
[1736933523265,0.10422692,97062.0,97061.0,0.1279542]
[1736933523618,0.20422692,97062.0,97061.0,0.1279542]
[1736933523940,0.20722692,97062.0,97061.0,0.1279542]
[1736933524440,0.20422692,97062.0,97061.0,0.1279542]
[1736933524676,0.206041,97068.0,97061.0,0.1299542]
[1736933524874,0.00179446,97069.0,97061.0,0.1299542]
[1736933524875,0.10422692,97067.0,97061.0,0.1299542]
[1736933525080,0.00179446,97069.0,97062.0,0.206053]
[1736933525196,0.00179446,97069.0,97063.0,0.0779]
[1736933525403,0.00179446,97069.0,97064.0,0.206049]
[1736933525786,0.00179446,97069.0,97065.0,0.0779]
[1736933526020,0.00179446,97069.0,97068.0,0.206041]
[1736933526240,0.00179446,97069.0,97068.0,0.33764502]
[1736933526453,0.00179446,97069.0,97068.0,0.38284502]
[1736933527566,0.00179382,97077.0,97076.0,0.206024]
[1736933527820,0.00179382,97077.0,97076.0,0.329124]
[1736933528026,0.00175382,97077.0,97076.0,0.329124]
[1736933528219,0.00175382,97077.0,97076.0,0.41378333]
[1736933528417,0.00175382,97077.0,97076.0,0.4340455]
[1736933528824,0.00175382,97077.0,97076.0,0.434095]
[1736933530578,0.00275382,97077.0,97076.0,0.439095]
[1736933530997,0.00275382,97077.0,97076.0,0.437095]
[1736933531199,0.00375382,97077.0,97076.0,0.436095]
[1736933531336,0.00375382,97077.0,97076.0,0.586095]
[1736933532142,0.00375382,97077.0,97076.0,0.590095]
[1736933533638,0.00362984,97077.0,97076.0,0.590095]
[1736933535055,0.50227446,97084.0,97076.0,0.590095]
[1736933535056,0.50227446,97084.0,97083.0,0.206009]
[1736933535255,0.50227446,97084.0,97083.0,0.38464767]
[1736933535985,0.50227446,97084.0,97083.0,0.73887459]
[1736933536100,0.45227446,97084.0,97083.0,0.73887459]
[1736933537334,0.27572585,97084.0,97083.0,0.74787459]
[1736933537543,0.0631002,97084.0,97083.0,0.73887459]
[1736933537755,0.0641002,97084.0,97083.0,0.74387459]
[1736933538004,0.0651002,97084.0,97083.0,0.75287459]
[1736933538212,0.0631002,97084.0,97083.0,0.73887459]
[1736933538592,0.0651002,97084.0,97083.0,0.75387459]
[1736933539194,0.0650087,97084.0,97083.0,0.75387459]
[1736933539826,0.0640087,97084.0,97083.0,0.74787459]
[1736933540307,0.0650087,97084.0,97083.0,0.75487459]
[1736933541829,0.0650087,97084.0,97083.0,0.65487459]
[1736933542030,0.0650087,97084.0,97083.0,0.76087459]
[1736933542228,0.0650087,97084.0,97083.0,1.06988459]
[1736933545237,0.0650087,97084.0,97083.0,1.07073869]
[1736933545437,0.06680232,97084.0,97083.0,1.07073869]
[1736933546888,0.06480232,97084.0,97083.0,1.05473869]
[1736933547312,0.06580232,97084.0,97083.0,1.06773869]
[1736933547514,0.06480232,97084.0,97083.0,0.3138641]
[1736933547713,0.06480232,97084.0,97083.0,0.3098641]
[1736933547910,0.06580232,97084.0,97083.0,0.3188641]
[1736933549199,0.06680232,97084.0,97083.0,0.3258641]
[1736933549541,0.06580232,97084.0,97083.0,0.39268548]
[1736933549741,0.06480232,97084.0,97083.0,0.38568548]
[1736933550007,0.06580232,97084.0,97083.0,0.39868548]
[1736933550608,0.06580232,97084.0,97083.0,0.39468548]
[1736933550749,0.06480232,97084.0,97083.0,0.38568548]
[1736933550946,0.06480232,97084.0,97083.0,0.39868548]
[1736933551151,0.06580232,97084.0,97083.0,0.39868548]
[1736933552935,0.06580232,97084.0,97083.0,0.40468548]
[1736933554712,0.06580232,97084.0,97083.0,0.39868548]
[1736933554980,0.06580232,97084.0,97083.0,0.3228641]
[1736933559194,0.25282924,97084.0,97083.0,0.3228641]
[1736933559495,0.29872924,97084.0,97083.0,0.3228641]
[1736933559942,0.29772924,97084.0,97083.0,0.3098641]
[1736933560152,0.29772924,97084.0,97083.0,0.3128641]
[1736933560329,0.29772924,97084.0,97083.0,0.3138641]
[1736933560558,0.29772924,97084.0,97083.0,0.3108641]
[1736933560733,0.29772924,97084.0,97083.0,0.3118641]
[1736933561094,0.29772924,97084.0,97083.0,0.3108641]
[1736933561295,0.29772924,97084.0,97083.0,0.3128641]
[1736933561723,0.29772924,97084.0,97083.0,0.3118641]
[1736933561898,0.29272924,97084.0,97083.0,0.3128641]
[1736933562509,0.29272924,97084.0,97083.0,0.3098641]
[1736933562906,0.18850232,97084.0,97083.0,0.34385546]
[1736933563492,0.18850232,97084.0,97083.0,0.34285546]
[1736933563652,0.18850232,97084.0,97083.0,0.34085546]
[1736933563857,0.18850232,97084.0,97083.0,0.34285546]
[1736933564262,0.18850232,97084.0,97083.0,0.34085546]
[1736933564640,0.18850232,97084.0,97083.0,0.34385546]
[1736933564900,0.18850232,97084.0,97083.0,0.34485546]
[1736933565110,0.18850232,97084.0,97083.0,0.3138641]
[1736933565485,0.18850232,97084.0,97083.0,0.3128641]
[1736933565692,0.18850232,97084.0,97083.0,0.3138641]
[1736933570194,0.10570232,97084.0,97083.0,0.3138641]
[1736933570349,0.10570232,97084.0,97083.0,0.36585766]
[1736933572150,0.10570232,97084.0,97083.0,0.3138641]
[1736933577336,0.05980232,97084.0,97083.0,0.3138641]
[1736933589546,0.05976232,97084.0,97083.0,0.3138641]
[1736933594277,0.05976232,97084.0,97083.0,0.51809102]
[1736933594454,0.00179362,97097.0,97083.0,0.51809102]
[1736933594455,0.00179362,97097.0,97096.0,0.205981]
[1736933594686,0.00179362,97097.0,97096.0,0.59358067]
[1736933594813,0.00179362,97097.0,97096.0,0.598511]
[1736933595019,0.00179362,97097.0,97096.0,0.63067552]
[1736933595218,0.00179362,97097.0,97096.0,0.89533151]
[1736933595424,0.00179362,97097.0,97096.0,0.92746434]
[1736933596015,0.00179362,97097.0,97096.0,1.07746434]
[1736933596366,0.00179362,97097.0,97096.0,1.04533151]
[1736933596789,0.00179362,97097.0,97096.0,0.95273792]
[1736933596929,0.00179362,97097.0,97096.0,0.95573792]
[1736933597126,0.0452,97132.0,97096.0,0.95573792]
[1736933597127,0.0452,97132.0,97130.0,0.205909]
[1736933597352,0.0821,97139.0,97130.0,0.30886]
[1736933597549,0.18315751,97144.0,97131.0,0.205907]
[1736933597740,0.18315751,97144.0,97131.0,0.514767]
[1736933597951,0.1,97132.0,97131.0,0.30886]
[1736933598163,0.28632692,97132.0,97131.0,0.30886]
[1736933598362,0.28781934,97132.0,97131.0,0.30886]
[1736933598586,0.29081934,97132.0,97131.0,0.30886]
[1736933598794,0.49672434,97132.0,97131.0,0.30886]
[1736933599600,0.49563287,97132.0,97131.0,0.30886]
[1736933599822,0.49563287,97132.0,97131.0,0.30986]
[1736933600456,0.49263287,97132.0,97131.0,0.30886]
[1736933600791,0.49363287,97132.0,97131.0,0.31186]
[1736933601209,0.28772787,97132.0,97131.0,0.30886]
[1736933601401,0.18781934,97132.0,97131.0,0.30886]
[1736933601604,0.00249242,97132.0,97131.0,0.339746]
[1736933602635,0.00249242,97132.0,97131.0,0.30886]
[1736933612809,0.10671934,97132.0,97131.0,0.30886]
[1736933613384,0.20662787,97132.0,97131.0,0.30886]
[1736933614387,0.28932787,97132.0,97131.0,0.30886]
[1736933627109,0.31232787,97132.0,97131.0,0.30886]
[1736933627328,0.60090889,97132.0,97131.0,0.30886]
[1736933627547,0.70090889,97132.0,97131.0,0.30886]
[1736933627751,0.80090889,97132.0,97131.0,0.3097132]
[1736933627954,0.80270062,97132.0,97131.0,0.3097132]
[1736933628291,0.82316339,97132.0,97131.0,0.29671318]
[1736933628498,0.80170062,97132.0,97131.0,0.29671318]
[1736933628707,0.81070062,97132.0,97131.0,0.0018532]
[1736933628891,0.80970062,97132.0,97131.0,0.0018532]
[1736933629248,0.81470062,97132.0,97131.0,0.0018532]
[1736933629869,0.80570062,97132.0,97131.0,0.0008532]
[1736933630443,0.80970062,97132.0,97131.0,0.0018532]
[1736933630892,0.81370062,97132.0,97131.0,0.0018532]
[1736933633277,0.81370062,97132.0,97085.0,0.288103]
[1736933633278,0.30588553,97099.0,97085.0,0.27780968]
[1736933633482,0.30588553,97099.0,97087.0,0.206]
[1736933633743,0.09990853,97105.0,97095.0,0.205982]
[1736933633936,0.09990853,97103.0,97095.0,0.205982]
[1736933634144,0.10422692,97104.0,97094.0,0.205984]
[1736933634346,0.09990853,97103.0,97094.0,0.205984]
[1736933634552,0.09990853,97102.0,97094.0,4.95e-05]
[1736933635142,0.30587653,97102.0,97095.0,0.002]
[1736933635306,0.30587653,97102.0,97094.0,4.95e-05]
[1736933636049,0.30589153,97095.0,97094.0,4.95e-05]
[1736933636226,0.41011845,97095.0,97094.0,4.95e-05]
[1736933636856,0.41011845,97095.0,97094.0,0.0020495]
[1736933637155,0.41011845,97095.0,97094.0,4.95e-05]
[1736933637863,0.41111845,97095.0,97094.0,4.95e-05]
[1736933638000,0.41411845,97095.0,97094.0,4.95e-05]
[1736933638198,0.41111845,97095.0,97094.0,4.95e-05]
[1736933638465,0.41011845,97095.0,97094.0,4.95e-05]
[1736933638614,0.41311845,97095.0,97094.0,4.95e-05]
[1736933639702,0.41011845,97095.0,97094.0,4.95e-05]
[1736933639880,0.41011845,97095.0,97094.0,0.0009027]
[1736933650143,0.4867276,97095.0,97094.0,0.0009027]
[1736933650352,0.6321276,97095.0,97094.0,0.0009027]
[1736933650936,0.6320876,97095.0,97094.0,0.0009027]
[1736933651236,0.6350876,97095.0,97094.0,0.0009027]
[1736933651478,0.55847845,97095.0,97094.0,0.0009027]
[1736933652707,0.41487102,97095.0,97094.0,0.0009027]
[1736933652903,0.41187102,97095.0,97094.0,0.0009027]
[1736933653105,0.41887102,97095.0,97094.0,0.0019027]
[1736933653305,0.41187102,97095.0,97094.0,0.0009027]
[1736933653508,0.52129542,97095.0,97094.0,0.0009027]
[1736933653842,0.52629542,97095.0,97094.0,0.0009027]
[1736933654069,0.52429542,97095.0,97094.0,0.0009027]
[1736933654280,0.52729542,97095.0,97094.0,0.0009027]
[1736933654632,0.52029542,97095.0,97094.0,0.0009027]
[1736933654839,0.52529542,97095.0,97094.0,0.0009027]
[1736933655715,0.52429542,97095.0,97094.0,0.0009027]
[1736933656115,0.52129542,97095.0,97094.0,0.0009027]
[1736933656294,0.43687102,97095.0,97094.0,0.0009027]
[1736933656499,0.44287102,97095.0,97094.0,0.0019027]
[1736933656698,0.43687102,97095.0,97094.0,0.0009027]
[1736933657097,0.44187102,97095.0,97094.0,0.0009027]
[1736933658773,0.43987102,97095.0,97094.0,0.0009027]
[1736933659189,0.52909542,97095.0,97094.0,0.0009027]
[1736933659722,0.52409542,97095.0,97094.0,0.0009027]
[1736933660070,0.44187102,97095.0,97094.0,0.0009027]
[1736933660302,0.43487102,97095.0,97094.0,0.0009027]
[1736933660516,0.43687102,97095.0,97094.0,0.0009027]
[1736933660718,0.44087102,97095.0,97094.0,0.0009027]
[1736933670825,0.59087102,97095.0,97094.0,0.0009027]
[1736933671035,0.83982705,97095.0,97094.0,0.0009027]
[1736933671614,0.80404647,97095.0,97094.0,0.0009027]
[1736933672008,0.80204647,97095.0,97094.0,0.0009027]
[1736933672371,0.80404647,97095.0,97094.0,0.0009027]
[1736933672576,0.80004647,97095.0,97094.0,0.0009027]
[1736933672822,0.80404647,97095.0,97094.0,0.0009027]
[1736933673279,0.80404647,97095.0,97068.0,0.09236932]
[1736933673280,0.023,97094.0,97068.0,0.0819797]
[1736933673489,0.20603,97073.0,97068.0,0.08203574]
[1736933673856,0.30589853,97073.0,97070.0,0.0819797]
[1736933674872,0.30589853,97073.0,97068.0,5.604e-05]
[1736933675730,0.20603,97073.0,97068.0,0.00205604]
[1736933675934,0.30589853,97073.0,97068.0,0.00205604]
[1736933676389,0.09986853,97080.0,97069.0,0.04249972]
[1736933676593,0.09974457,97080.0,97069.0,0.04249972]
[1736933676742,0.09974457,97080.0,97070.0,0.005]
[1736933677185,0.09974457,97080.0,97069.0,0.04249972]
[1736933677413,0.09974457,97080.0,97073.0,0.13855399]
[1736933678311,0.30576057,97080.0,97073.0,0.13855399]
[1736933678904,0.09974457,97076.0,97073.0,0.13855399]
[1736933679714,0.30576057,97080.0,97073.0,0.13855399]
[1736933680336,0.09974457,97076.0,97073.0,0.14255399]
[1736933680539,0.09974457,97076.0,97073.0,0.18505371]
[1736933680736,0.09974457,97076.0,97073.0,0.13955399]
[1736933681051,0.09974457,97076.0,97074.0,0.13855399]
[1736933682540,0.09974457,97076.0,97075.0,0.13855399]
[1736933683507,0.30576057,97080.0,97075.0,0.13855399]
[1736933684388,0.30576057,97080.0,97078.0,0.09271266]
[1736933685014,0.09974457,97090.0,97078.0,0.29873066]
[1736933685228,0.27659257,97095.0,97088.0,0.205996]
[1736933685229,0.00179257,97095.0,97088.0,0.205996]
[1736933685422,0.00179257,97095.0,97090.0,0.0771]
[1736933685649,0.00179257,97095.0,97094.0,0.205985]
[1736933685991,0.00179257,97095.0,97094.0,0.22626634]
[1736933686189,0.00179257,97095.0,97094.0,0.25426126]
[1736933686396,0.00379257,97095.0,97094.0,0.25426126]
[1736933686589,0.00379257,97095.0,97094.0,0.26441187]
[1736933687608,0.00379257,97095.0,97094.0,0.26641187]
[1736933687810,0.00379257,97095.0,97094.0,0.26441187]
[1736933688037,0.00179257,97095.0,97094.0,0.26441187]
[1736933688244,0.00279257,97095.0,97094.0,0.27141187]
[1736933689019,0.00279257,97095.0,97094.0,0.27341187]
[1736933691138,0.00279257,97095.0,97094.0,0.24541695]
[1736933691320,0.00279257,97095.0,97094.0,0.24484745]
[1736933693314,0.00279257,97095.0,97094.0,0.47609391]
[1736933693498,0.50279257,97095.0,97094.0,0.47609391]
[1736933694252,0.50279257,97095.0,97094.0,0.24484745]
[1736933696849,0.50279257,97095.0,97094.0,0.42971617]
[1736933698583,0.50279257,97095.0,97094.0,0.03943195]
[1736933698765,0.50279257,97095.0,97094.0,0.009]
[1736933700418,0.58339257,97095.0,97094.0,0.009]
[1736933700977,0.68313714,97095.0,97094.0,0.009]
[1736933701192,0.78736406,97095.0,97094.0,0.007]
[1736933701400,0.83276406,97095.0,97094.0,0.007]
[1736933701616,0.83276406,97095.0,97080.0,0.0008538]
[1736933701821,0.09974457,97087.0,97080.0,0.0008538]
[1736933702035,0.10422692,97086.0,97080.0,0.0008538]
[1736933702590,0.09974457,97081.0,97080.0,0.0008538]
[1736933704243,0.09974457,97081.0,97080.0,0.0028538]
[1736933704447,0.09974457,97081.0,97080.0,0.0008538]
[1736933704849,0.09974457,97083.0,97080.0,0.0058538]
[1736933705061,0.09974457,97081.0,97080.0,0.0058538]
[1736933706711,0.09974457,97081.0,97080.0,0.0048538]
[1736933707137,0.09974457,97081.0,97080.0,0.0058538]
[1736933707571,0.09974457,97081.0,97080.0,0.0048538]
[1736933707867,0.09974457,97081.0,97080.0,0.0058538]
[1736933708086,0.09974457,97081.0,97080.0,0.0018538]
[1736933708285,0.09974457,97081.0,97080.0,0.0008538]
[1736933708587,0.10274457,97081.0,97080.0,0.0008538]
[1736933710646,0.003,97081.0,97080.0,0.2068688]
[1736933710842,0.003,97081.0,97080.0,0.21739183]
[1736933711050,0.003,97081.0,97080.0,0.29789183]
[1736933711691,0.50179257,97095.0,97080.0,0.29789183]
[1736933711967,0.50179257,97095.0,97094.0,0.205985]
[1736933714170,0.50179257,97095.0,97094.0,0.288485]
[1736933714376,0.50179257,97095.0,97094.0,0.334585]
[1736933714796,0.50179257,97095.0,97094.0,0.34618352]
[1736933714956,0.50179257,97095.0,97094.0,0.34418352]
[1736933715168,0.50179257,97095.0,97094.0,0.50720562]
[1736933716002,0.50179257,97095.0,97094.0,0.36859444]
[1736933716385,0.50279257,97095.0,97094.0,0.37459444]